fUSD/lending_fUSD_20241224
["ID","MTS","AMOUNT","RATE_DAILY","PERIOD"]
[346485854,1735005042244,-500.0,0.00013972,2]
[346485855,1735005042254,-367.46308799,0.00013972,2]
[346485856,1735005042264,-615.35,0.00013972,2]
[346485857,1735005042273,-500.0,0.00013972,2]
[346485858,1735005042283,-758.8,0.00013972,2]
[346485859,1735005042293,-982.46,0.00013972,2]
[346485860,1735005042303,-500.0,0.00013972,2]
[346485861,1735005042313,-1155.49,0.00013972,2]
[346485862,1735005042323,-1572.16,0.00013972,2]
[346485863,1735005042332,-500.0,0.00013972,2]
[346485864,1735005042342,-500.0,0.00013972,2]
[346485865,1735005042352,-975.81,0.00013972,2]
[346485866,1735005042363,-500.0,0.00013972,2]
[346485867,1735005042372,-814.9,0.00013972,2]
[346485868,1735005042382,-500.0,0.00013972,2]
[346485869,1735005042392,-678.29,0.00013972,2]
[346485870,1735005042402,-500.0,0.00013972,2]
[346485872,1735005042412,-1288.73,0.00013972,2]
[346485874,1735005042422,-500.0,0.00013972,2]
[346485875,1735005042432,-1230.4,0.00013972,2]
[346485876,1735005042442,-500.0,0.00013972,2]
[346485877,1735005042452,-1000.03,0.00013972,2]
[346485878,1735005042462,-500.0,0.00013972,2]
[346485879,1735005042473,-500.0,0.00013972,2]
[346485880,1735005042483,-500.0,0.00013972,2]
[346485881,1735005042493,-669.53,0.00013972,2]
[346485882,1735005042503,-665.58,0.00013972,2]
[346485883,1735005042512,-992.64,0.00013972,2]
[346485884,1735005042522,-664.8,0.00013972,2]
[346485885,1735005042533,-500.0,0.00013972,2]
[346485886,1735005042542,-1331.07,0.00013972,2]
[346485887,1735005042552,-853.97,0.00013972,2]
[346485888,1735005042563,-500.0,0.00013972,2]
[346485889,1735005042572,-500.0,0.00013972,2]
[346485890,1735005042583,-967.72,0.00013972,2]
[346485891,1735005042597,-500.0,0.00013972,2]
[346485892,1735005042607,-576.77,0.00013972,2]
[346485893,1735005042616,-555.29,0.00013972,2]
[346485894,1735005042626,-560.38,0.00013972,2]
[346485895,1735005042637,-500.0,0.00013972,2]
[346485896,1735005042646,-546.23,0.00013972,2]
[346485897,1735005042655,-500.0,0.00013972,2]
[346485898,1735005042665,-500.0,0.00013972,2]
[346485899,1735005042675,-606.25,0.00013972,2]
[346485900,1735005042685,-666.0,0.00013972,2]
[346485901,1735005042694,-500.0,0.00013972,2]
[346485902,1735005042703,-500.0,0.00013972,2]
[346485903,1735005042713,-586.86,0.00013972,2]
[346485904,1735005042724,-761.52,0.00013972,2]
[346485905,1735005042733,-500.0,0.00013972,2]
[346485906,1735005042743,-779.8,0.00013972,2]
[346485907,1735005042753,-500.0,0.00013972,2]
[346485908,1735005042762,-759.57,0.00013972,2]
[346485909,1735005042771,-500.0,0.00013972,2]
[346485910,1735005042781,-500.0,0.00013972,2]
[346485911,1735005042790,-1039.65,0.00013972,2]
[346485912,1735005042799,-500.0,0.00013972,2]
[346485913,1735005042808,-767.76,0.00013972,2]
[346485914,1735005042818,-1492.35,0.00013972,2]
[346485915,1735005042827,-500.0,0.00013972,2]
[346485916,1735005042836,-500.0,0.00013972,2]
[346485917,1735005042846,-725.63,0.00013972,2]
[346485918,1735005042855,-1632.36,0.00013972,2]
[346485919,1735005042864,-500.0,0.00013972,2]
[346485920,1735005042874,-947.67,0.00013972,2]
[346485921,1735005042883,-500.0,0.00013972,2]
[346485922,1735005042892,-657.1,0.00013972,2]
[346485923,1735005042902,-500.0,0.00013972,2]
[346485924,1735005042911,-500.0,0.00013972,2]
[346485925,1735005042921,-500.0,0.00013972,2]
[346485926,1735005042930,-895.18,0.00013972,2]
[346485927,1735005042939,-545.54,0.00013972,2]
[346485928,1735005042949,-500.0,0.00013972,2]
[346485929,1735005042959,-500.0,0.00013972,2]
[346485930,1735005042968,-500.0,0.00013972,2]
[346485931,1735005042977,-500.0,0.00013972,2]
[346485932,1735005042987,-500.0,0.00013972,2]
[346485933,1735005042996,-603.39,0.00013972,2]
[346485934,1735005043005,-808.0,0.00013972,2]
[346485935,1735005043015,-686.83,0.00013972,2]
[346485936,1735005043025,-1217.78,0.00013972,2]
[346485937,1735005043034,-653.53,0.00013972,2]
[346485938,1735005043044,-500.0,0.00013972,2]
[346485939,1735005043054,-806.87,0.00013972,2]
[346485940,1735005043063,-747.9,0.00013972,2]
[346485941,1735005043073,-571.37,0.00013972,2]
[346485942,1735005043083,-500.0,0.00013972,2]
[346485943,1735005043093,-500.0,0.00013972,2]
[346485944,1735005043102,-821.17,0.00013972,2]
[346485945,1735005043112,-999.71,0.00013972,2]
[346485946,1735005043122,-500.0,0.00013972,2]
[346485947,1735005043131,-1049.39,0.00013972,2]
[346485948,1735005043140,-500.0,0.00013972,2]
[346485949,1735005043150,-1906.15,0.00013972,2]
[346485950,1735005043159,-877.8,0.00013972,2]
[346485951,1735005043168,-622.43,0.00013972,2]
[346485952,1735005043177,-500.0,0.00013972,2]
[346485953,1735005043186,-500.0,0.00013972,2]
[346485954,1735005043195,-150.0,0.00013972,2]
[346485955,1735005043204,-550.34,0.00013972,2]
[346485956,1735005043213,-640.59,0.00013972,2]
[346485957,1735005043223,-500.0,0.00013972,2]
[346485958,1735005043233,-284.67098907,0.00013972,2]
[346485959,1735005043243,-2935.85,0.00013972,2]
[346485960,1735005043252,-500.0,0.00013972,2]
[346485961,1735005043261,-627.48,0.00013972,2]
[346485962,1735005043270,-876.05,0.00013972,2]
[346485963,1735005043280,-829.08,0.00013972,2]
[346485964,1735005043289,-500.0,0.00013972,2]
[346485965,1735005043299,-500.0,0.00013972,2]
[346485966,1735005043308,-1467.14,0.00013972,2]
[346485967,1735005043317,-1333.38,0.00013972,2]
[346485968,1735005043326,-1921.83,0.00013972,2]
[346485969,1735005043335,-1411.89,0.00013972,2]
[346485970,1735005043345,-500.0,0.00013972,2]
[346485971,1735005043354,-500.0,0.00013972,2]
[346485972,1735005043363,-1449.0,0.00013972,2]
[346485973,1735005043374,-1246.03,0.00013972,2]
[346485974,1735005043384,-1401.49,0.00013972,2]
[346485975,1735005043393,-5428.46,0.00013972,2]
[346485976,1735005043403,-635.56,0.00013972,2]
[346485977,1735005043413,-510.61,0.00013972,2]
[346485978,1735005043422,-737.58,0.00013972,2]
[346485979,1735005043431,-500.0,0.00013972,2]
[346485980,1735005043440,-500.0,0.00013972,2]
[346485981,1735005043449,-500.0,0.00013972,2]
[346485982,1735005043459,-500.0,0.00013972,2]
[346485983,1735005043468,-500.0,0.00013972,2]
[346485984,1735005043477,-701.58,0.00013972,2]
[346485985,1735005043487,-7930.82,0.00013972,2]
[346485986,1735005043496,-7981.38,0.00013972,2]
[346485987,1735005043505,-500.0,0.00013972,2]
[346485988,1735005043514,-7070.574518,0.00013972,2]
[346485989,1735005043523,-500.0,0.00013972,2]
[346485990,1735005043533,-2087.04,0.00013972,2]
[346485991,1735005043543,-678.76,0.00013972,2]
[346485992,1735005043552,-500.0,0.00013972,2]
[346485993,1735005043562,-500.0,0.00013972,2]
[346485994,1735005043571,-2725.85,0.00013972,2]
[346485995,1735005043580,-500.0,0.00013972,2]
[346485996,1735005043592,-3752.07058968,0.00013972,2]
[346485997,1735005043620,-3579.51971232,0.00013972,2]
[346485998,1735005043630,-500.0,0.00013972,2]
[346485999,1735005043640,-500.0,0.00013972,2]
[346486000,1735005043649,-1857.36,0.00013972,2]
[346486001,1735005043659,-500.0,0.00013972,2]
[346486002,1735005043668,-1546.96,0.00013972,2]
[346486003,1735005043678,-500.0,0.00013972,2]
[346486004,1735005043687,-752.45,0.00013972,2]
[346486005,1735005043697,-2563.42,0.00013972,2]
[346486006,1735005043707,-1041.94,0.00013972,2]
[346486007,1735005043716,-1709.72,0.00013972,2]
[346486008,1735005043727,-804.78,0.00013972,2]
[346486009,1735005043736,-373.14958654,0.00013972,2]
[346486010,1735005043745,-668.4,0.00013972,2]
[346486011,1735005043754,-500.0,0.00013972,2]
[346486012,1735005043764,-3469.16,0.00013972,2]
[346486013,1735005043774,-2738.29,0.00013972,2]
[346486014,1735005043784,-500.0,0.00013972,2]
[346486015,1735005043793,-500.0,0.00013972,2]
[346486016,1735005043803,-500.0,0.00013972,2]
[346486017,1735005043812,-500.0,0.00013972,2]
[346486018,1735005043822,-3816.71,0.00013972,2]
[346486019,1735005043831,-276.761865,0.00013972,2]
[346486020,1735005043840,-5074.14,0.00013972,2]
[346486021,1735005043850,-276.761865,0.00013972,2]
[346486022,1735005043859,-1092.78,0.00013972,2]
[346486023,1735005043868,-276.761865,0.00013972,2]
[346486024,1735005043877,-848.39,0.00013972,2]
[346486025,1735005043887,-500.0,0.00013972,2]
[346486026,1735005043896,-1114.73,0.00013972,2]
[346486027,1735005043905,-607.64,0.00013972,2]
[346486028,1735005043915,-696.24,0.00013972,2]
[346486029,1735005043924,-5433.97,0.00013972,2]
[346486030,1735005043933,-1642.69,0.00013972,2]
[346486031,1735005043943,-500.0,0.00013972,2]
[346486032,1735005043952,-1378.86,0.00013972,2]
[346486033,1735005043962,-659.07,0.00013972,2]
[346486034,1735005043971,-4674.42,0.00013972,2]
[346486035,1735005043981,-500.0,0.00013972,2]
[346486036,1735005043991,-161.31443568,0.00013972,2]
[346486037,1735005044000,-500.0,0.00013972,2]
[346486038,1735005044011,-500.0,0.00013972,2]
[346486039,1735005044020,-933.15,0.00013972,2]
[346486040,1735005044031,-500.0,0.00013972,2]
[346486041,1735005044040,-500.0,0.00013972,2]
[346486042,1735005044050,-500.0,0.00013972,2]
[346486043,1735005044060,-2979.44,0.00013972,2]
[346486044,1735005044069,-913.79,0.00013972,2]
[346486045,1735005044079,-695.35,0.00013972,2]
[346486046,1735005044088,-612.5,0.00013972,2]
[346486047,1735005044098,-500.0,0.00013972,2]
[346486048,1735005044107,-500.0,0.00013972,2]
[346486049,1735005044117,-1278.65,0.00013972,2]
[346486050,1735005044206,-669.49,0.00013972,2]
[346486051,1735005044217,-1389.88,0.00013972,2]
[346486052,1735005044229,-500.0,0.00013972,2]
[346486053,1735005044239,-500.0,0.00013972,2]
[346486054,1735005044249,-500.0,0.00013972,2]
[346486055,1735005044259,-500.0,0.00013972,2]
[346486056,1735005044268,-784.44,0.00013972,2]
[346486057,1735005044278,-585.56,0.00013972,2]
[346486058,1735005044288,-1193.83,0.00013972,2]
[346486059,1735005044297,-2714.86,0.00013972,2]
[346486060,1735005044307,-1370.31,0.00013972,2]
[346486061,1735005044316,-1153.2,0.00013972,2]
[346486062,1735005044326,-5291.92,0.00013972,2]
[346486063,1735005044335,-500.0,0.00013972,2]
[346486064,1735005044344,-553.18,0.00013972,2]
[346486065,1735005044354,-1227.36,0.00013972,2]
[346486066,1735005044363,-2448.17,0.00013972,2]
[346486068,1735005044372,-1405.68,0.00013972,2]
[346486070,1735005044381,-811.82,0.00013972,2]
[346486072,1735005044391,-500.0,0.00013972,2]
[346486074,1735005044400,-585.81,0.00013972,2]
[346486075,1735005044409,-4892.64,0.00013972,2]
[346486076,1735005044419,-500.0,0.00013972,2]
[346486077,1735005044428,-597.78,0.00013972,2]
[346486078,1735005044437,-579.66,0.00013972,2]
[346486079,1735005044446,-2485.29,0.00013972,2]
[346486080,1735005044455,-500.0,0.00013972,2]
[346486081,1735005044464,-500.0,0.00013972,2]
[346486082,1735005044474,-500.0,0.00013972,2]
[346486083,1735005044483,-500.0,0.00013972,2]
[346486084,1735005044493,-3000.0,0.00013972,2]
[346486085,1735005044502,-530.34,0.00013972,2]
[346486086,1735005044511,-500.0,0.00013972,2]
[346486087,1735005044520,-877.29,0.00013972,2]
[346486088,1735005044531,-500.0,0.00013972,2]
[346486089,1735005044540,-729.91,0.00013972,2]
[346486090,1735005044549,-500.0,0.00013972,2]
[346486091,1735005044559,-500.0,0.00013972,2]
[346486092,1735005044568,-3934.87,0.00013972,2]
[346486093,1735005044578,-1139.75,0.00013972,2]
[346486094,1735005044588,-688.23,0.00013972,2]
[346486095,1735005044604,-1052.51,0.00013972,2]
[346486096,1735005044614,-500.0,0.00013972,2]
[346486097,1735005044623,-1908.23,0.00013972,2]
[346486098,1735005044636,-1987.66,0.00013972,2]
[346486099,1735005044645,-11597.28,0.00013972,2]
[346486100,1735005044655,-500.0,0.00013972,2]
[346486101,1735005044668,-896.91,0.00013972,2]
[346486102,1735005044677,-609.73,0.00013972,2]
[346486103,1735005044686,-323.83591994,0.00013972,2]
[346486104,1735005044695,-2488.09,0.00013972,2]
[346486105,1735005044704,-814.85,0.00013972,2]
[346486106,1735005044713,-1516.76,0.00013972,2]
[346486107,1735005044722,-500.0,0.00013972,2]
[346486108,1735005044732,-2185.79,0.00013972,2]
[346486109,1735005044741,-280.756357,0.00013972,2]
[346486110,1735005044750,-1678.62,0.00013972,2]
[346486111,1735005044759,-1022.32,0.00013972,2]
[346486112,1735005044768,-500.0,0.00013972,2]
[346486113,1735005044778,-650.09,0.00013972,2]
[346486114,1735005044787,-1888.37,0.00013972,2]
[346486115,1735005044797,-14657.4,0.00013972,2]
[346486116,1735005044806,-3243.17,0.00013972,2]
[346486117,1735005044815,-500.0,0.00013972,2]
[346486118,1735005044824,-187.973417,0.00013972,2]
[346486119,1735005044834,-2540.96,0.00013972,2]
[346486120,1735005044843,-704.17,0.00013972,2]
[346486121,1735005044852,-1727.96,0.00013972,2]
[346486122,1735005044861,-1062.82,0.00013972,2]
[346486123,1735005044871,-1895.88,0.00013972,2]
[346486124,1735005044880,-500.0,0.00013972,2]
[346486125,1735005044889,-500.0,0.00013972,2]
[346486126,1735005044898,-10946.6,0.00013972,2]
[346486127,1735005044908,-260.96579044,0.00013972,2]
[346486128,1735005044917,-500.0,0.00013972,2]
[346486129,1735005044926,-500.0,0.00013972,2]
[346486130,1735005044935,-500.0,0.00013972,2]
[346486131,1735005044944,-801.3,0.00013972,2]
[346486132,1735005044953,-1281.75,0.00013972,2]
[346486133,1735005044962,-2461.32,0.00013972,2]
[346486134,1735005044972,-1593.46,0.00013972,2]
[346486135,1735005044981,-1018.19,0.00013972,2]
[346486136,1735005044990,-2616.13,0.00013972,2]
[346486137,1735005045000,-2146.91,0.00013972,2]
[346486138,1735005045009,-797.75,0.00013972,2]
[346486139,1735005045018,-500.0,0.00013972,2]
[346486140,1735005045028,-692.13,0.00013972,2]
[346486141,1735005045038,-4194.63,0.00013972,2]
[346486142,1735005045047,-4821.36,0.00013972,2]
[346486143,1735005045056,-500.0,0.00013972,2]
[346486144,1735005045065,-500.0,0.00013972,2]
[346486145,1735005045075,-500.0,0.00013972,2]
[346486146,1735005045084,-500.0,0.00013972,2]
[346486147,1735005045093,-1512.8,0.00013972,2]
[346486148,1735005045102,-4895.69,0.00013972,2]
[346486149,1735005045111,-2648.48,0.00013972,2]
[346486150,1735005045120,-9741.7,0.00013972,2]
[346486151,1735005045130,-5171.93,0.00013972,2]
[346486152,1735005045139,-2364.98,0.00013972,2]
[346486153,1735005045148,-1469.27,0.00013972,2]
[346486154,1735005045158,-816.28,0.00013972,2]
[346486155,1735005045167,-558.89,0.00013972,2]
[346486156,1735005045177,-500.0,0.00013972,2]
[346486157,1735005045186,-655.72,0.00013972,2]
[346486158,1735005045196,-500.0,0.00013972,2]
[346486159,1735005045205,-922.18,0.00013972,2]
[346486160,1735005045215,-2902.47,0.00013972,2]
[346486161,1735005045226,-2732.78,0.00013972,2]
[346486162,1735005045235,-3400.08,0.00013972,2]
[346486163,1735005045244,-2750.89,0.00013972,2]
[346486164,1735005045253,-705.21,0.00013972,2]
[346486165,1735005045262,-500.0,0.00013972,2]
[346486166,1735005045272,-1398.29,0.00013972,2]
[346486167,1735005045281,-690.07,0.00013972,2]
[346486168,1735005045290,-3550.74,0.00013972,2]
[346486169,1735005045300,-7358.06,0.00013972,2]
[346486170,1735005045310,-500.0,0.00013972,2]
[346486171,1735005045320,-7630.33,0.00013972,2]
[346486172,1735005045329,-2844.56,0.00013972,2]
[346486173,1735005045339,-500.0,0.00013972,2]
[346486174,1735005045348,-4920.38,0.00013972,2]
[346486175,1735005045357,-588.79,0.00013972,2]
[346486176,1735005045367,-500.0,0.00013972,2]
[346486177,1735005045376,-551.98,0.00013972,2]
[346486178,1735005045385,-1774.07,0.00013972,2]
[346486179,1735005045394,-2733.22,0.00013972,2]
[346486180,1735005045403,-6900.18,0.00013972,2]
[346486181,1735005045413,-500.0,0.00013972,2]
[346486182,1735005045422,-2480.31,0.00013972,2]
[346486183,1735005045433,-161.35118156,0.00013972,2]
[346486184,1735005045443,-734.92,0.00013972,2]
[346486185,1735005045453,-3474.2,0.00013972,2]
[346486186,1735005045463,-1780.75,0.00013972,2]
[346486187,1735005045473,-4667.76,0.00013972,2]
[346486188,1735005045483,-500.0,0.00013972,2]
[346486189,1735005045492,-1065.87,0.00013972,2]
[346486190,1735005045501,-2502.73,0.00013972,2]
[346486191,1735005045511,-500.0,0.00013972,2]
[346486192,1735005045520,-1092.5,0.00013972,2]
[346486193,1735005045530,-640.4,0.00013972,2]
[346486194,1735005045539,-812.98,0.00013972,2]
[346486195,1735005045548,-4818.52,0.00013972,2]
[346486196,1735005045557,-430.91095479,0.00013972,2]
[346486197,1735005045567,-500.0,0.00013972,2]
[346486198,1735005045576,-4790.04,0.00013972,2]
[346486199,1735005045585,-500.0,0.00013972,2]
[346486200,1735005045598,-500.0,0.00013972,2]
[346486201,1735005045608,-792.53,0.00013972,2]
[346486202,1735005045617,-1597.8,0.00013972,2]
[346486203,1735005045627,-561.07,0.00013972,2]
[346486204,1735005045637,-1046.04,0.00013972,2]
[346486205,1735005045646,-500.0,0.00013972,2]
[346486206,1735005045655,-7741.49,0.00013972,2]
[346486207,1735005045664,-500.0,0.00013972,2]
[346486208,1735005045675,-27394.69,0.00013972,2]
[346486209,1735005045685,-2042.85,0.00013972,2]
[346486210,1735005045695,-850.78,0.00013972,2]
[346486211,1735005045704,-538.72,0.00013972,2]
[346486212,1735005045713,-928.03,0.00013972,2]
[346486213,1735005045723,-791.4,0.00013972,2]
[346486214,1735005045732,-3390.93,0.00013972,2]
[346486215,1735005045743,-250.57545018,0.00013972,2]
[346486216,1735005045753,-1442.52,0.00013972,2]
[346486217,1735005045772,-23650.05,0.00013972,2]
[346486218,1735005045782,-500.0,0.00013972,2]
[346486219,1735005045792,-500.0,0.00013972,2]
[346486220,1735005045802,-722.19,0.00013972,2]
[346486221,1735005045812,-1080.02,0.00013972,2]
[346486222,1735005045822,-3243.29,0.00013972,2]
[346486223,1735005045831,-1199.41,0.00013972,2]
[346486224,1735005045840,-2927.94,0.00013972,2]
[346486225,1735005045849,-500.0,0.00013972,2]
[346486226,1735005045859,-500.0,0.00013972,2]
[346486227,1735005045868,-2262.24,0.00013972,2]
[346486228,1735005045878,-500.0,0.00013972,2]
[346486229,1735005045888,-676.43,0.00013972,2]
[346486230,1735005045897,-500.0,0.00013972,2]
[346486231,1735005045907,-16800.47,0.00013972,2]
[346486232,1735005045916,-3270.13,0.00013972,2]
[346486233,1735005045925,-1142.09,0.00013972,2]
[346486234,1735005045935,-896.68,0.00013972,2]
[346486235,1735005045944,-2533.0,0.00013972,2]
[346486236,1735005045953,-2386.4628152,0.00013976,2]
[346486237,1735005045962,-759.07597806,0.00013976,2]
[346486238,1735005045972,-939.2373947,0.00013976,2]
[346486239,1735005045981,-1744.013933,0.00013976,2]
[346486240,1735005045990,-151.0,0.00013986,2]
[346486241,1735005046000,-153.062,0.00013996,2]
[346486242,1735005046009,-150.0,0.00013996,2]
[346486243,1735005046018,-150.0,0.00013996,2]
[346486244,1735005046027,-212.449,0.00013996,2]
[346486245,1735005046037,-150.0,0.00013996,2]
[346486246,1735005046047,-150.0,0.00013996,2]
[346486247,1735005046056,-1634.49,0.00014,3]
[346486248,1735005046066,-270.31001955,0.00014,2]
[346486249,1735005046075,-1730.82362745,0.00014,3]
[346486250,1735005046085,-1454.66588877,0.00014,3]
[346486251,1735005046094,-6846.01563903,0.00014005,2]
[346486252,1735005046104,-4243.0146327,0.00014032,2]
[346486253,1735005046114,-12280.44066444,0.00014032,2]
[346486254,1735005046123,-4243.0146327,0.00014177,2]
[346486255,1735005046133,-12280.44066444,0.00014177,2]
[346486256,1735005046142,-6553.81546848,0.00014184,2]
[346486257,1735005046152,-2165.50853112,0.0001421,7]
[346486258,1735005046161,-276.761865,0.00014219,2]
[346486259,1735005046171,-86605.0,0.00014219,2]
[346486261,1735005046181,-7835.0,0.00014219,2]
[346486263,1735005046191,-8898.0,0.00014219,2]
[346486265,1735005046201,-2530.69,0.00014245,2]
[346486266,1735005046211,-1039.94,0.00014245,2]
[346486267,1735005046220,-2869.85,0.00014245,2]
[346486268,1735005046232,-18250.33,0.00014245,2]
[346486269,1735005046242,-885.03,0.00014245,2]
[346486270,1735005046252,-2504.11,0.00014245,2]
[346486271,1735005046261,-2045.24,0.00014245,2]
[346486272,1735005046271,-1451.95,0.00014245,2]
[346486273,1735005046281,-4240.01,0.00014245,2]
[346486274,1735005046290,-701.76,0.00014245,2]
[346486275,1735005046300,-775.79,0.00014245,2]
[346486276,1735005046310,-1929.67,0.00014245,2]
[346486277,1735005046319,-1896.29,0.00014245,2]
[346486278,1735005046328,-1004.3,0.00014245,2]
[346486279,1735005046338,-3793.2,0.00014245,2]
[346486280,1735005046347,-2845.49,0.00014245,2]
[346486281,1735005046356,-201.67600527,0.00014246,2]
[346486282,1735005046365,-1449.0,0.00014246,2]
[346486283,1735005046375,-500.0,0.00014246,2]
[346486284,1735005046384,-2533.0,0.00014246,2]
[346486285,1735005046393,-693.58,0.00014246,2]
[346486286,1735005046404,-500.0,0.00014246,2]
[346486287,1735005046413,-536.44,0.00014246,2]
[346486288,1735005046423,-500.0,0.00014246,2]
[346486289,1735005046432,-500.0,0.00014246,2]
[346486290,1735005046443,-500.0,0.00014246,2]
[346486291,1735005046453,-500.0,0.00014246,2]
[346486292,1735005046462,-500.0,0.00014246,2]
[346486293,1735005046474,-500.0,0.00014246,2]
[346486294,1735005046483,-500.0,0.00014246,2]
[346486295,1735005046493,-500.0,0.00014246,2]
[346486296,1735005046502,-500.0,0.00014246,2]
[346486297,1735005046512,-500.0,0.00014246,2]
[346486298,1735005046521,-500.0,0.00014246,2]
[346486299,1735005046530,-500.0,0.00014246,2]
[346486300,1735005046539,-784.02,0.00014246,2]
[346486301,1735005046548,-506.51,0.00014246,2]
[346486302,1735005046558,-503.73,0.00014246,2]
[346486303,1735005046567,-554.9,0.00014246,2]
[346486304,1735005046577,-500.0,0.00014246,2]
[346486305,1735005046586,-535.53,0.00014246,2]
[346486306,1735005046599,-612.99,0.00014246,2]
[346486307,1735005046608,-500.0,0.00014246,2]
[346486308,1735005046618,-500.0,0.00014246,2]
[346486309,1735005046627,-663.13,0.00014246,2]
[346486310,1735005046636,-500.0,0.00014246,2]
[346486311,1735005046646,-500.0,0.00014246,2]
[346486312,1735005046655,-500.0,0.00014246,2]
[346486313,1735005046665,-500.0,0.00014246,2]
[346486314,1735005046675,-520.85,0.00014246,2]
[346486315,1735005046685,-500.0,0.00014246,2]
[346486316,1735005046695,-500.0,0.00014246,2]
[346486317,1735005046705,-417.74671847,0.00014246,2]
[346486318,1735005046714,-676.91,0.00014246,2]
[346486319,1735005046723,-500.0,0.00014246,2]
[346486320,1735005046732,-500.0,0.00014246,2]
[346486321,1735005046741,-500.0,0.00014246,2]
[346486322,1735005046750,-935.69,0.00014246,2]
[346486323,1735005046759,-421.79826797,0.00014246,2]
[346486324,1735005046768,-344.12874239,0.00014246,2]
[346486325,1735005046778,-520.07,0.00014246,2]
[346486326,1735005046787,-500.0,0.00014246,2]
[346486327,1735005046796,-500.0,0.00014246,2]
[346486328,1735005046805,-579.71,0.00014246,2]
[346486329,1735005046815,-1105.55,0.00014246,2]
[346486330,1735005046824,-764.27,0.00014246,2]
[346486331,1735005046833,-500.0,0.00014246,2]
[346486332,1735005046842,-500.0,0.00014246,2]
[346486333,1735005046851,-500.0,0.00014246,2]
[346486334,1735005046862,-528.95,0.00014246,2]
[346486335,1735005046871,-500.0,0.00014246,2]
[346486336,1735005046881,-500.0,0.00014246,2]
[346486337,1735005046890,-530.3,0.00014246,2]
[346486338,1735005046900,-500.0,0.00014246,2]
[346486339,1735005046909,-500.0,0.00014246,2]
[346486340,1735005046918,-500.0,0.00014246,2]
[346486341,1735005046928,-500.0,0.00014246,2]
[346486342,1735005046937,-500.0,0.00014246,2]
[346486343,1735005046946,-725.57,0.00014246,2]
[346486344,1735005046954,-500.0,0.00014246,2]
[346486345,1735005046963,-500.0,0.00014246,2]
[346486346,1735005046974,-733.56,0.00014246,2]
[346486347,1735005046983,-500.0,0.00014246,2]
[346486348,1735005046994,-303.80834546,0.00014246,2]
[346486349,1735005047002,-500.0,0.00014246,2]
[346486350,1735005047012,-621.19,0.00014246,2]
[346486351,1735005047021,-500.0,0.00014246,2]
[346486352,1735005047031,-500.0,0.00014246,2]
[346486353,1735005047040,-500.0,0.00014246,2]
[346486354,1735005047050,-523.15,0.00014246,2]
[346486355,1735005047059,-905.37,0.00014246,2]
[346486356,1735005047069,-584.17,0.00014246,2]
[346486357,1735005047078,-515.31,0.00014246,2]
[346486358,1735005047088,-699.45,0.00014246,2]
[346486359,1735005047098,-500.0,0.00014246,2]
[346486360,1735005047107,-500.0,0.00014246,2]
[346486361,1735005047116,-657.84,0.00014246,2]
[346486362,1735005047125,-500.0,0.00014246,2]